bitfinex-derivatives/quotes_SOLF0:USTF0_20250202
["timestamp","ask_amount","ask_price","bid_price","bid_amount"]
[1738526711607,3.0568,204.64,204.6,2.76e-06]
[1738526712208,0.03397345,204.65,204.6,2.76e-06]
[1738526712910,0.03397345,204.65,204.63,40.74269699]
[1738526713114,4.8848,204.77,204.63,40.74269699]
[1738526713403,9.4098,204.78,204.67,40.74269699]
[1738526713603,2.9385,204.82,204.72,45.62849699]
[1738526713810,4.8843,204.79,204.72,40.74269699]
[1738526714009,3.0681,204.86,204.72,40.74269699]
[1738526714205,4.8836,204.82,204.73,4.8854]
[1738526714411,0.03341454,204.81,204.77,0.03747724]
[1738526714613,0.03341454,204.81,204.64,40.74269699]
[1738526714813,4.8851,204.76,204.68,4.8868]
[1738526715013,3.0681,204.86,204.72,40.74269699]
[1738526715412,3.0681,204.86,204.68,40.74269699]
[1738526715816,0.03333966,204.79,204.75,0.03676845]
[1738526717419,4.8847,204.77,204.75,6.845e-05]
[1738526717619,0.03333966,204.79,204.64,40.74269699]
[1738526717817,40.74269699,204.84,204.64,40.74269699]
[1738526718119,40.74269699,204.8,204.6,40.74269699]
[1738526718719,0.03210826,204.72,204.68,6.548e-05]
[1738526719019,4.8866,204.69,204.68,6.548e-05]
[1738526720317,45.62929699,204.69,204.68,6.548e-05]
[1738526721024,4.8902,204.55,204.46,40.74269699]
[1738526721218,40.74269699,204.65,204.46,40.74269699]
[1738526721418,4.889,204.6,204.5,40.74269699]
[1738526721663,5.3,204.68,204.38,92.06869599]
[1738526721664,5.3,204.68,204.54,40.74269699]
[1738526721917,4.8903,204.54,204.45,40.74269699]
[1738526722222,40.74269699,204.61,204.45,40.74269699]
[1738526722421,40.74269699,204.65,204.45,45.63499699]
[1738526722721,2.8944,204.67,204.45,40.74269699]
[1738526723117,4.8908,204.52,204.45,40.74269699]
[1738526723519,4.8908,204.52,204.46,0.0313313]
[1738526723750,40.74269699,204.62,204.46,0.0313313]
[1738526723924,0.03310831,204.51,204.46,0.0313313]
[1738526724115,40.74269699,204.62,204.43,4.8928]
[1738526724424,0.03688652,204.51,204.41,40.74269699]
[1738526724618,0.03688652,204.51,204.5,0.03519092]
[1738526724842,0.03688652,204.51,204.41,40.74269699]
[1738526725021,0.03688652,204.51,204.48,0.0344693]
[1738526725617,4.8914,204.49,204.48,0.0344693]
[1738526725823,4.8914,204.49,204.48,6.93e-05]
[1738526726619,0.03688652,204.51,204.48,6.93e-05]
[1738526726920,4.8912,204.5,204.48,6.93e-05]
[1738526727427,4.8914,204.49,204.48,6.93e-05]
[1738526727622,0.03688652,204.51,204.48,6.93e-05]
[1738526728627,4.8914,204.49,204.48,6.93e-05]
[1738526729532,0.03688652,204.51,204.48,6.93e-05]
[1738526730153,0.03688652,204.51,204.48,40.74276629]
[1738526730327,3.0468,204.64,204.48,40.74276629]
[1738526730524,4.8885,204.62,204.55,4.8899]
[1738526730830,4.8885,204.62,204.53,40.74269699]
[1738526731024,4.8885,204.62,204.54,4.89]
[1738526731233,4.8885,204.62,204.53,40.74269699]
[1738526731632,3.0468,204.64,204.53,40.74269699]
[1738526731633,0.03725436,204.6,204.56,0.03279333]
[1738526732253,4.8893,204.58,204.56,0.03279333]
[1738526732432,0.03725436,204.6,204.56,0.03279333]
[1738526732927,4.8895,204.57,204.56,0.03279333]
[1738526733130,4.8895,204.57,204.56,9.333e-05]
[1738526734028,0.03725436,204.6,204.56,9.333e-05]
[1738526736232,4.92615436,204.6,204.56,9.333e-05]
[1738526736436,0.03725436,204.6,204.56,9.333e-05]
[1738526737548,4.92605436,204.6,204.56,9.333e-05]
[1738526738336,0.03725436,204.6,204.56,40.74279032]
[1738526738631,40.74269699,204.73,204.56,9.333e-05]
[1738526738839,4.8889,204.6,204.52,40.74269699]
[1738526739138,40.74269699,204.69,204.52,40.74269699]
[1738526739633,40.74269699,204.69,204.48,40.74269699]
[1738526739837,40.74269699,204.69,204.58,0.03405066]
[1738526740145,0.03645918,204.61,204.44,40.74269699]
[1738526740432,4.8906,204.53,204.47,4.8919]
[1738526740637,4.8906,204.53,204.44,40.74269699]
[1738526740939,40.74269699,204.61,204.42,73.57165184]
[1738526741142,4.8912,204.5,204.42,73.57165184]
[1738526741339,0.03361548,204.54,204.49,0.03174724]
[1738526741639,4.8925,204.45,204.42,73.57165184]
[1738526741838,0.03202556,204.54,204.42,73.57165184]
[1738526742139,0.03384087,204.5,204.41,0.03211593]
[1738526742341,40.74269699,204.49,204.32,73.57165184]
[1738526742538,6.2228,204.48,204.43,3.678e-05]
[1738526742736,6.25414252,204.48,204.34,40.74269699]
[1738526743135,6.2228,204.48,204.34,40.74269699]
[1738526743337,4.8939,204.39,204.32,78.46705184]
[1738526743542,6.2228,204.48,204.32,73.57165184]
[1738526743841,0.03533348,204.38,204.32,73.57165184]
[1738526744336,0.03533348,204.38,204.33,0.03253337]
[1738526744541,0.03533348,204.38,204.33,3.337e-05]
[1738526744738,4.8948,204.35,204.33,3.337e-05]
[1738526744940,0.03533348,204.38,204.33,3.337e-05]
[1738526745141,0.03533348,204.38,204.34,40.74269699]
[1738526745443,6.2228,204.48,204.34,40.74269699]
[1738526745944,4.8925,204.45,204.36,4.8943]
[1738526746163,6.2228,204.48,204.36,4.8943]
[1738526746345,2.9198,204.51,204.38,40.74269699]
[1738526746637,0.03274943,204.44,204.4,4.92843102]
[1738526746843,0.03274943,204.44,204.4,0.03503102]
[1738526747647,4.8931,204.42,204.4,0.03503102]
[1738526747942,0.03274943,204.44,204.4,0.03503102]
[1738526748142,4.8933,204.42,204.4,3.102e-05]
[1738526748737,3.0521,204.41,204.4,3.102e-05]
[1738526749244,4.8933,204.42,204.4,3.102e-05]
[1738526751542,45.63599699,204.42,204.4,3.102e-05]
[1738526752541,4.8966,204.28,204.21,4.8981]
[1738526753446,40.74269699,204.38,204.19,42.52509699]
[1738526753647,0.03619246,204.27,204.22,0.03503556]
[1738526753843,0.03619246,204.27,204.12,73.57165184]
[1738526754042,4.8992,204.17,204.12,73.57165184]
[1738526754350,6.3506,204.29,204.12,73.57165184]
[1738526754544,4.8974,204.24,204.12,73.57165184]
[1738526754841,6.3506,204.29,204.15,40.74269699]
[1738526755248,6.3506,204.29,204.12,73.57165184]
[1738526755442,0.03167503,204.24,204.2,0.03680614]
[1738526756039,0.03167503,204.24,204.21,4.898]
[1738526756240,0.03167503,204.24,204.2,0.03680614]
[1738526756445,4.8979,204.22,204.2,0.03680614]
[1738526756845,0.03167503,204.24,204.2,0.03680614]
[1738526757044,0.03167503,204.24,204.05,40.74269699]
[1738526757243,9.3739,204.24,204.05,40.74269699]
[1738526757542,4.9005,204.11,204.05,45.64459699]
[1738526757790,9.3739,204.24,204.05,40.74269699]
[1738526758346,40.74269699,204.17,203.99,154.87792786]
[1738526758747,40.74269699,204.13,203.99,153.08122786]
[1738526759045,3.18277957,204.12,204.07,7.499e-05]
[1738526759246,4.9012,204.08,204.07,7.499e-05]
[1738526759848,9.30337957,204.12,204.07,7.499e-05]
[1738526760050,40.74269699,204.09,204.07,7.499e-05]
[1738526760745,9.30337957,204.12,204.07,7.499e-05]
[1738526761249,4.9011,204.09,204.07,7.499e-05]
[1738526761949,0.03397957,204.12,204.07,7.499e-05]
[1738526763053,0.03397957,204.12,204.1,4.9006]
[1738526763447,0.03397957,204.12,204.07,7.499e-05]
[1738526763648,4.93437957,204.12,204.07,7.499e-05]
[1738526764050,0.03397957,204.12,204.07,7.499e-05]
[1738526764246,4.9011,204.09,204.07,7.499e-05]
[1738526764450,0.03397957,204.12,204.07,7.499e-05]
[1738526764848,4.9005,204.11,204.07,7.499e-05]
[1738526765180,40.74269699,204.33,204.07,40.74277198]
[1738526765453,40.74269699,204.33,204.14,40.74269699]
[1738526765647,3.2099,204.32,204.1,40.74269699]
[1738526766054,3.2099,204.32,204.14,40.74269699]
[1738526766355,0.03737217,204.23,204.19,40.77451032]
[1738526766547,0.03737217,204.23,204.19,0.03181333]
[1738526766748,9.0116,204.37,204.19,40.74269699]
[1738526766950,0.03308672,204.23,204.19,40.77889784]
[1738526767251,3.2099,204.36,204.19,40.77766599]
[1738526767453,9.0116,204.37,204.19,40.77766599]
[1738526767454,9.0116,204.37,204.27,40.74269699]
[1738526767648,4.8946,204.36,204.27,45.63919699]
[1738526767855,4.8946,204.36,204.08,5.3]
[1738526767856,3.1537,204.37,204.17,40.74269699]
[1738526768553,0.03516513,204.29,204.25,0.03622321]
[1738526768949,0.03516513,204.29,204.25,2.321e-05]
[1738526769356,6.513e-05,204.29,204.25,2.321e-05]
[1738526769555,2.9512,204.47,204.27,40.74269699]
[1738526769857,40.74269699,204.59,204.38,40.74269699]
[1738526770053,4.8929,204.43,204.34,40.74269699]
[1738526770250,40.74269699,204.55,204.34,40.74269699]
[1738526770854,0.03419131,204.47,204.42,0.03473437]
[1738526771259,0.03419131,204.47,204.34,40.74269699]
[1738526771453,0.03419131,204.47,204.42,0.03372408]
[1738526771656,0.0328171,204.43,204.42,0.03372408]
[1738526771857,0.0328171,204.43,204.35,4.8947]
[1738526771858,0.0328171,204.43,204.34,40.74269699]
[1738526772055,0.0328171,204.43,204.4,0.03412774]
[1738526772261,12.2841,204.58,204.42,40.74269699]
[1738526772464,12.2841,204.58,204.46,40.74269699]
[1738526773158,40.74269699,204.68,204.4,5.3]
[1738526773372,40.74269699,204.72,204.54,40.74269699]
[1738526773557,0.03725118,204.56,204.52,0.03284974]
[1738526773761,4.8887,204.61,204.51,4.8908]
[1738526773957,0.03598301,204.56,204.52,0.03210226]
[1738526774155,12.2287,204.67,204.46,40.74269699]
[1738526774362,0.03703903,204.56,204.52,0.03334448]
[1738526774754,0.03705762,204.56,204.5,40.74269699]
[1738526774956,0.03705762,204.56,204.52,0.03176751]
[1738526775154,12.2287,204.67,204.46,40.74269699]
[1738526775365,0.03516367,204.56,204.52,0.03124017]
[1738526775556,12.2287,204.67,204.5,40.74269699]
[1738526775774,0.03364256,204.56,204.52,0.0337227]
[1738526775960,12.2287,204.67,204.46,45.63469699]
[1738526776162,12.2287,204.67,204.52,0.03425599]
[1738526776163,0.0311723,204.56,204.52,0.03425599]
[1738526776361,40.74269699,204.66,204.52,0.03425599]
[1738526776564,12.2287,204.67,204.52,4.8906]
[1738526776565,4.8883,204.62,204.52,4.8906]
[1738526776867,0.03387769,204.61,204.57,0.03251396]
[1738526777665,96.86,204.98,204.58,40.74269699]
[1738526777882,4.885,204.76,204.63,40.74269699]
[1738526778066,12.0058,204.81,204.63,40.74269699]
[1738526778365,4.8856,204.74,204.64,4.8877]
[1738526778561,12.0058,204.81,204.63,40.74269699]
[1738526778766,0.03518145,204.71,204.67,0.03576822]
[1738526779070,12.0058,204.81,204.63,40.74269699]
[1738526779268,0.03562841,204.71,204.67,0.03323122]
[1738526779569,12.0058,204.81,204.63,40.74269699]
[1738526779773,0.03729625,204.71,204.67,0.03271756]
[1738526780012,12.0058,204.81,204.63,40.74269699]
[1738526780269,0.03566848,204.71,204.67,0.0352314]
[1738526780471,40.74269699,204.78,204.59,40.74269699]
[1738526780667,0.03399495,204.71,204.67,0.0324482]
[1738526780867,4.8868,204.68,204.67,0.0324482]
[1738526782476,4.8868,204.68,204.59,40.74269699]
[1738526782477,4.8893,204.58,204.49,40.74269699]
[1738526782673,3.202,204.7,204.49,40.74269699]
[1738526783067,4.8881,204.63,204.49,40.74269699]
[1738526783376,3.202,204.7,204.49,40.74269699]
[1738526783572,0.03236395,204.62,204.57,0.03270884]
[1738526783777,0.03236395,204.62,204.49,40.74269699]
[1738526784076,3.202,204.7,204.49,40.74269699]
[1738526784077,4.8892,204.58,204.57,0.03147992]
[1738526784371,0.03268585,204.58,204.49,40.74269699]
[1738526784565,4.8895,204.57,204.55,0.03692899]
[1738526784767,0.03268585,204.58,204.55,0.03692899]
[1738526784967,0.03268585,204.58,204.55,2.899e-05]
[1738526785367,0.14634307,204.56,204.55,2.899e-05]
[1738526785573,40.77538284,204.58,204.55,2.899e-05]
[1738526785774,9.3359,204.57,204.55,2.899e-05]
[1738526786078,4.8897,204.56,204.55,2.899e-05]
[1738526787474,9.3829,204.57,204.28,1.6927]
[1738526787679,40.74269699,204.49,204.28,1.6927]
[1738526787881,40.74269699,204.53,204.33,40.74269699]
[1738526788483,0.03345989,204.45,204.41,0.03247138]
[1738526788678,4.8931,204.42,204.41,0.03247138]
[1738526789379,0.03345989,204.45,204.41,0.03247138]
[1738526791676,2.9627,204.55,204.41,0.03247138]
[1738526791878,2.9627,204.55,204.4,40.74269699]
[1738526792727,0.03321499,204.5,204.45,0.0372366]
[1738526793387,2.8915,204.65,204.48,40.74269699]
[1738526793981,2.8915,204.65,204.43,40.74269699]
[1738526794280,40.74269699,204.57,204.39,40.74269699]
[1738526794483,2.9189,204.56,204.39,40.74269699]
[1738526794684,0.03745342,204.5,204.46,0.03282915]
[1738526794876,4.8921,204.47,204.37,4.8943]
[1738526795183,4.8921,204.47,204.46,0.03659326]
[1738526795379,4.8878,204.64,204.63,4688.28662565]
[1738526795586,67.48449554,204.64,204.63,4375.4847826]
[1738526795780,67.48449554,204.64,204.63,4364.4835826]
[1738526796082,47.50449554,204.64,204.63,4305.1181826]
[1738526796283,5.86512603,204.64,204.63,4305.1181826]
[1738526797280,0.97732603,204.64,204.63,4305.1181826]
[1738526797580,0.03106185,204.66,204.63,4305.1181826]
[1738526797978,5.28,204.83,204.63,4305.1181826]
[1738526798176,41.71916413,204.82,204.63,4305.1181826]
[1738526798376,4.8856,204.74,204.63,4305.1181826]
[1738526798783,41.71916413,204.82,204.63,4305.1181826]
[1738526798982,41.71916413,204.82,204.7,0.03746445]
[1738526798983,0.03268803,204.75,204.7,0.03746445]
[1738526799384,0.03268803,204.75,204.7,40.78016144]
[1738526800078,0.97646714,204.82,204.74,40.74269699]
[1738526800484,40.74269699,204.9,204.7,40.74269699]
[1738526800787,4.8834,204.83,204.7,40.74269699]
[1738526800982,40.74269699,204.9,204.7,40.74269699]
[1738526801387,4.884,204.8,204.78,0.03592805]
[1738526803084,0.03545154,204.82,204.69,1.96]
[1738526803286,40.74269699,204.82,204.69,1.96]
[1738526803690,4.8857,204.73,204.69,1.96]
[1738526804428,4.8859,204.72,204.69,0.0328325]
[1738526804586,0.03517063,204.73,204.69,0.0328325]
[1738526805095,4.8862,204.71,204.69,0.0328325]
[1738526806190,40.77786762,204.73,204.63,4305.1181826]
[1738526806396,4.8876,204.65,204.63,4305.1181826]
[1738526806991,4.8876,204.65,204.63,4297.5594826]
[1738526807187,4.8876,204.65,204.63,4271.6940826]
[1738526807389,4.8876,204.65,204.63,4243.4524826]
[1738526808195,4.8876,204.65,204.63,4220.1615826]
[1738526808400,4.8876,204.65,204.63,4191.9128826]
[1738526808599,45.63029699,204.65,204.63,4191.88182075]
[1738526808989,0.97732603,204.64,204.63,3976.20902566]
[1738526809193,41.72002302,204.64,204.63,3779.18650887]
[1738526809492,56.42002302,204.64,204.63,3779.18650887]
[1738526809692,15.67732603,204.64,204.63,3779.18650887]
[1738526809891,1.87391095,204.64,204.63,3779.18650887]
[1738526810095,0.97732603,204.64,204.63,3779.18650887]
[1738526812294,0.97732603,204.64,204.63,3716.31330887]
[1738526812700,0.97732603,204.64,204.63,3530.31264036]
[1738526813703,0.03316237,204.66,204.63,3530.31264036]
[1738526814704,40.74269699,204.64,204.63,3530.31264036]
[1738526814909,45.63049699,204.64,204.63,3530.31264036]
[1738526815603,45.63049699,204.64,204.63,3335.66944527]
[1738526816507,45.63049699,204.64,204.63,3310.75784527]
[1738526816701,46.60782302,204.64,204.63,3233.62859731]
[1738526817108,41.72002302,204.64,204.63,3233.62859731]
[1738526817407,0.97732603,204.64,204.63,3233.62859731]
[1738526817702,0.03316237,204.66,204.63,3233.62859731]
[1738526819005,40.74269699,204.82,204.65,40.74269699]
[1738526819212,40.74269699,204.86,204.65,40.74269699]
[1738526819412,40.74269699,204.9,204.73,40.74269699]
[1738526819711,40.74269699,204.9,204.74,3.0716]
[1738526820111,40.74269699,204.9,204.75,1.96]
[1738526820307,0.03748321,204.84,204.8,0.03345076]
[1738526820806,1.01385501,204.84,204.8,0.03345076]
[1738526822213,40.74269699,204.83,204.8,0.03345076]
[1738526822521,40.74269699,204.83,204.8,0.00495076]
[1738526822522,4.8837,204.82,204.8,0.00495076]
[1738526822808,0.97651481,204.81,204.8,0.00495076]
[1738526823708,0.97651481,204.81,204.67,1.96]
[1738526824409,40.74269699,204.79,204.67,1.96]
[1738526824638,40.74269699,204.75,204.63,3233.62859731]
[1738526824801,55.44269699,204.75,204.63,3233.62859731]
[1738526825009,14.73105425,204.75,204.71,9.003e-05]
[1738526825206,4.8878,204.64,204.63,3233.62859731]
[1738526825507,4.8878,204.64,204.63,3218.52819731]
[1738526825707,4.8878,204.64,204.63,3201.84239731]
[1738526825911,19.5878,204.64,204.63,2987.42015298]
[1738526826106,46.52709539,204.64,204.63,2880.90600502]
[1738526826307,10.1478,204.64,204.63,2880.90600502]
[1738526826611,5.26,204.64,204.63,2880.90600502]
[1738526827413,0.03461636,204.66,204.63,2880.90600502]
[1738526829105,5.26,204.78,204.63,2880.90600502]
[1738526829415,40.74269699,204.71,204.63,2880.90600502]
[1738526829707,40.74269699,204.67,204.63,2880.90600502]
[1738526829938,40.74269699,204.67,204.63,2880.86940502]
[1738526830210,19.5877,204.65,204.63,2847.25430502]
[1738526830408,19.96,204.64,204.63,2625.84203805]
[1738526830608,19.96,204.64,204.63,2574.22829009]
[1738526830810,20.85660109,204.64,204.63,2574.22829009]
[1738526831029,20.85660109,204.64,204.63,2558.11829009]
[1738526831213,20.85660109,204.64,204.63,2529.60119009]
[1738526831512,20.85660109,204.64,204.63,2515.37999009]
[1738526832008,20.85660109,204.64,204.63,2497.62139009]
[1738526832207,20.85660109,204.64,204.63,2451.30109009]
[1738526832405,61.59929808,204.64,204.63,2441.30109009]
[1738526832605,61.59929808,204.64,204.63,2351.1572468]
[1738526832805,20.85660109,204.64,204.63,2351.1572468]
[1738526833014,20.85660109,204.64,204.63,2338.8172468]
[1738526833212,20.85682968,204.64,204.63,2294.5631468]
[1738526833414,20.85682968,204.64,204.63,2138.45004704]
[1738526833615,61.59952667,204.64,204.63,2138.45004704]
[1738526833818,20.85682968,204.64,204.63,2138.45004704]
[1738526834013,61.59952667,204.64,204.63,1491.61264704]
[1738526834227,61.59952667,204.64,204.63,1050.54238165]
[1738526834417,61.59952667,204.64,204.63,392.57149814]
[1738526834621,61.59952667,204.64,204.63,82.39037006]
[1738526834819,20.85682968,204.64,204.63,62.70037006]
[1738526835114,20.85682968,204.64,204.63,25.22617006]
[1738526835319,20.85682968,204.64,204.63,12.19297006]
[1738526835514,20.85694695,204.64,204.63,12.19297006]
[1738526835716,15.59694695,204.64,204.63,12.19297006]
[1738526835913,6.15694695,204.64,204.63,12.19297006]
[1738526836112,6.15694695,204.64,204.63,0.03372812]
[1738526836113,20.85694695,204.64,204.63,0.03372812]
[1738526836415,20.85694695,204.64,204.52,4.9]
[1738526836416,19.5887,204.61,204.52,4.9]
[1738526836614,6.15694695,204.64,204.47,4.9]
[1738526836615,55.44269699,204.6,204.47,4.9]
[1738526836919,0.8968549,204.59,204.47,4.9]
[1738526837219,0.97761266,204.58,204.47,4.9]
[1738526837424,0.8968549,204.57,204.47,4.9]
[1738526837620,0.03542813,204.55,204.5,0.03602612]
[1738526837823,0.03542813,204.55,204.5,40.77872311]
[1738526838015,0.97770825,204.56,204.54,4.8902]
[1738526838219,0.03280984,204.55,204.54,4.8902]
[1738526838514,0.97770825,204.56,204.54,9.7902]
[1738526839722,0.97770825,204.56,204.54,4.9]
[1738526840222,0.97770825,204.56,204.5,0.0353025]
[1738526841026,0.97770825,204.56,204.5,4.9353025]
[1738526841218,40.74269699,204.72,204.5,45.67799949]
[1738526841422,6.15641714,204.71,204.54,40.74269699]
[1738526841624,6.15641714,204.71,204.5,4.9353025]
[1738526841625,5.26,204.71,204.64,4.8877]
[1738526841816,5.26,204.71,204.58,40.74269699]
[1738526842124,5.26,204.71,204.59,11.2023]
[1738526842521,0.03703921,204.67,204.63,0.03354539]
[1738526843018,0.03703921,204.67,204.64,4.9]
[1738526843617,0.56401698,204.76,204.64,4.9]
[1738526844126,40.74269699,204.73,204.64,4.9]
[1738526844424,4.8864,204.7,204.64,4.9]
[1738526844627,40.74269699,204.73,204.64,4.9]
[1738526844924,0.03326365,204.69,204.65,0.03275742]
[1738526845116,0.97680097,204.75,204.65,0.03275742]
[1738526845953,4.8861,204.72,204.65,0.03275742]
[1738526846125,40.74269699,204.7,204.65,0.03275742]
[1738526846521,4.8869,204.68,204.65,0.03275742]
[1738526846726,40.74269699,204.7,204.65,0.03275742]
[1738526846927,1.01329616,204.71,204.65,0.03275742]
[1738526846928,40.74269699,204.66,204.65,0.03275742]
[1738526847124,45.62999699,204.66,204.65,0.03275742]
[1738526847326,40.74269699,204.66,204.59,4.9]
[1738526847529,5.24,204.65,204.54,4.9]
[1738526847829,40.74269699,204.62,204.54,4.9]
[1738526848228,4.889,204.59,204.54,4.9]
[1738526848428,40.74269699,204.62,204.54,4.9]
[1738526848728,0.03152532,204.59,204.54,4.93635003]
[1738526849729,0.97746933,204.61,204.54,4.93635003]
[1738526850631,4.8899,204.56,204.54,4.93635003]
[1738526850830,40.74269699,204.59,204.54,4.93635003]
[1738526851030,0.03581597,204.57,204.54,0.03635003]
[1738526851325,4.89,204.55,204.54,0.03635003]
[1738526851924,45.63269699,204.55,204.54,0.03635003]
[1738526854027,0.03581597,204.57,204.54,0.03635003]
[1738526854631,4.89,204.55,204.54,0.03635003]
[1738526855527,10.13,204.55,204.54,0.03635003]
[1738526855721,5.24,204.55,204.54,0.03635003]
[1738526856230,0.4316,204.55,204.54,0.03635003]
[1738526856430,40.74269699,204.67,204.54,4.93635003]
[1738526856626,6.13652785,204.66,204.55,3.1225]
[1738526856828,5.24,204.66,204.55,3.1225]
[1738526857026,40.74269699,204.67,204.55,3.1225]
[1738526857231,45.98269699,204.67,204.55,3.1225]
[1738526857429,4.8868,204.69,204.55,3.1225]
[1738526857758,0.03443187,204.63,204.59,0.03107273]
[1738526857929,40.74269699,204.71,204.59,0.03107273]
[1738526858131,10.1259,204.72,204.62,4.8883]
[1738526858525,5.24,204.72,204.6,4.9]
[1738526858732,5.24,204.76,204.6,4.9]
[1738526858934,5.24,204.76,204.61,40.74269699]
[1738526859128,0.03120557,204.7,204.66,0.03182877]
[1738526859433,40.74269699,204.79,204.61,40.74269699]
[1738526859731,5.24,204.8,204.61,40.74269699]
[1738526860128,10.1241,204.8,204.68,4.8868]
[1738526860428,0.0322307,204.76,204.72,0.03100329]
[1738526860643,5.24,204.86,204.72,0.03100329]
[1738526860824,1.4224,204.99,204.73,4.9]
[1738526861029,1.4224,204.99,204.43,9.7852]
[1738526861030,40.74269699,204.84,204.68,4.9]
[1738526861232,40.74269699,204.76,204.56,40.74269699]
[1738526861430,5.24,204.75,204.56,40.74269699]
[1738526861629,5.24,204.75,204.57,4.9]
[1738526861832,0.03113091,204.68,204.63,0.03541351]
[1738526862336,0.03113091,204.68,204.64,4.9]
[1738526862830,0.03113091,204.68,204.63,0.03541351]
[1738526863039,40.74269699,204.67,204.63,0.03541351]
[1738526863427,0.03113091,204.68,204.63,0.03541351]
[1738526864834,40.74269699,204.67,204.63,0.03541351]
[1738526865927,4.8874,204.66,204.63,0.03541351]
[1738526866134,40.74269699,204.67,204.63,0.03541351]
[1738526866735,40.74269699,204.67,204.6,6.3781]
[1738526866929,4.8886,204.61,204.59,4.9]
[1738526867433,5.24,204.61,204.54,11.0684]
[1738526867632,40.74269699,204.57,204.49,4.9]
[1738526867837,40.74269699,204.53,204.43,12.4729]
[1738526868134,40.74269699,204.53,204.44,4.9]
[1738526868328,40.74269699,204.61,204.46,0.03475571]
[1738526868533,0.03461306,204.5,204.46,0.03475571]
[1738526868734,45.63119699,204.61,204.5,4.891]
[1738526869040,40.74269699,204.53,204.51,0.03256963]
[1738526869234,40.74269699,204.53,204.44,9.7926]
[1738526869428,40.74269699,204.57,204.46,0.03578733]
[1738526869937,0.03746365,204.54,204.46,0.03578733]
[1738526870136,45.98269699,204.61,204.46,0.03578733]
[1738526870334,5.24,204.61,204.59,4.889]
[1738526870638,5.24,204.61,204.46,40.74269699]
[1738526870639,5.24,204.7,204.46,40.74269699]
[1738526870940,40.74269699,204.67,204.46,40.74269699]
[1738526871235,40.74269699,204.63,204.47,4.9]
[1738526871443,0.03312927,204.59,204.54,0.0316199]
[1738526871830,0.03312927,204.59,204.54,4.9316199]
[1738526872031,0.03312927,204.59,204.54,9.8217199]
[1738526872235,0.03312927,204.59,204.54,4.9316199]
[1738526873540,5.24,204.7,204.55,3.0055]
[1738526873541,40.74269699,204.67,204.55,3.0055]
[1738526873840,40.74269699,204.71,204.55,3.0055]
[1738526874140,40.74269699,204.75,204.58,40.74269699]
[1738526874535,0.03349428,204.69,204.64,0.03428096]
[1738526874736,0.89599572,204.78,204.59,4.9]
[1738526874931,99.02611938,204.79,204.7,4.8863]
[1738526875136,93.78611938,204.79,204.59,4.9]
[1738526875338,40.74269699,204.71,204.59,4.9]
[1738526875840,0.03383676,204.67,204.63,0.03167819]
[1738526877145,40.74269699,204.71,204.64,4.9]
[1738526877336,40.74269699,204.75,204.64,4.9]
[1738526877641,40.74269699,204.75,204.65,4.8875]
[1738526877836,5.24,204.77,204.64,4.9]
[1738526878237,40.74269699,204.74,204.64,4.9]
[1738526878438,40.74269699,204.74,204.68,0.03385554]
[1738526878643,4.8857,204.73,204.68,0.03385554]
[1738526878840,40.74269699,204.7,204.59,4.9]
[1738526879041,40.74269699,204.71,204.59,4.9]
[1738526879843,40.74269699,204.71,204.6,6.3411]
[1738526880044,40.74269699,204.66,204.63,0.03354979]
[1738526880439,0.03604845,204.67,204.63,0.03354979]
[1738526880641,5.22,204.84,204.64,4.9]
[1738526880837,40.74269699,204.83,204.64,4.9]
[1738526881242,40.74269699,204.71,204.64,4.9]
[1738526881743,40.74269699,204.67,204.65,0.03663398]
[1738526881946,40.74269699,204.71,204.65,0.03663398]
[1738526882247,40.74269699,204.67,204.6,6.3411]
[1738526883296,40.74269699,204.75,204.6,6.3411]
[1738526883449,1.593e-05,204.66,204.61,0.03184327]
[1738526883650,5.22,204.81,204.65,40.74269699]
[1738526883847,0.56365729,204.87,204.69,40.74269699]
[1738526884042,0.56365729,204.87,204.7,2.8848]
[1738526884247,170.4210564,204.93,204.83,4.8831]
[1738526884451,170.4210564,204.93,204.74,40.74269699]
[1738526884743,170.4210564,204.93,204.8,0.03201169]
[1738526885150,40.74269699,204.93,204.8,0.03201169]
[1738526885344,40.74269699,204.93,204.8,4.91581169]
[1738526885539,40.74269699,204.93,204.8,4.8838]
[1738526885745,40.74269699,204.93,204.84,0.03566227]
[1738526888249,45.62369699,204.93,204.84,0.03566227]
[1738526888452,40.74269699,204.93,204.84,0.03566227]
[1738526888647,40.74269699,204.89,204.84,0.03566227]
[1738526888854,40.74269699,204.93,204.76,2.9158]
[1738526889049,40.74269699,204.93,204.84,0.03110873]
[1738526889248,5.22,204.98,204.84,0.03110873]
[1738526889249,45.62459699,204.89,204.84,0.03110873]
[1738526889452,40.74269699,204.89,204.84,0.03110873]
[1738526889661,40.74269699,204.89,204.76,2.9158]
[1738526889850,40.74269699,204.93,204.84,0.03190835]